Cogmind - Beta 17 @@@ ROGUE MODE // 2026.07.06 @ 02:12:50 Player: ChCbias Result: Destroyed by G-67 Veteran with Plasma Rifle Performance ------------- Evolutions (7) 3500 Regions Visited (17) 3400 Robots Destroyed (254) 1270 Value Destroyed (11034) 11034 Prototype IDs (14) 280 Alien Tech Used (2) 400 Bonus (782) 782 TOTAL SCORE: 20666 Bonus ------- High Alert Combat Kills 164 Follower Combat Kills 118 Scanned by Researcher 500 Cogmind --------- Core Integrity 0/1300 Matter 173/300 Energy 100/100 System Corruption 21% Temperature Cool (12) Movement Rolling (110) Ox1 Location -3/Quarantine Parts ------- > --- POWER (2) -------- (None) > --- PROPULSION (5) --- Biometal Medium Treads Centrium Wheel > --- UTILITY (9) ------ Large Storage Unit > --- WEAPON (5) ------- Coil Gun > --- INVENTORY (15) --- Advanced Coolant Injector Advanced Coolant Injector Improved Weapon Cycler Phase Redirector Peak State ------------ > --- POWER ------------ Reinforced Fission Core Antimatter Reactor > --- PROPULSION ------- Armored Heavy Treads Centrium Wheel Centrium Wheel Centrium Wheel > --- UTILITY ---------- Advanced Cooling System Large Storage Unit Energy Well Advanced Sensor Array Advanced Signal Interpreter Improved Medium Armor Plating Improved Heavy Armor Plating Phase Redirector > --- WEAPON ----------- Quantum Rifle Improved Matter Neutralizer Core Cannon Enhanced Force Lance > --- INVENTORY -------- Light Antimatter Reactor Armored Medium Treads Armored Medium Treads Armored Medium Treads Biometal Medium Treads Centrium Wheel Centrium Wheel Advanced Cooling System Advanced Coolant Injector Advanced Coolant Injector Advanced Particle Charger Improved Weapon Cycler Advanced Force Field High-powered Shotgun Gamma Bomb Array [Rating: 162] Favorites ----------- Power Neutrino Core Engine Light Angular Momentum Engine Power Core Neutrino Core Reactor Light Antimatter Reactor Propulsion Armored Treads Treads Armored Treads Leg Flexi-carbon Leg Wheel Centrium Wheel Flight Unit Improved Flight Unit Utility Large Storage Unit Device Advanced Cooling System Storage Large Storage Unit Processor Improved Signal Interpreter Protection Improved Light Armor Plating Artifact Phase Redirector Weapon Plasma Rifle Energy Gun Plasma Rifle Energy Cannon Heavy Ion Cannon Ballistic Gun Improved Assault Rifle Ballistic Cannon Advanced Assault Cannon Launcher Proton Missile Launcher Special Weapon Remote Datajack Slashing Weapon Chainsword Piercing Weapon Enhanced Force Lance Build | -11 -10 -10 -9 -9 -9 -7 -6 -5 -5 -5 -5 -4 -4 -4 -4 -3 -3 ------- Run | Yrd Mat Min Mat Sto Rec Fac Fac Fac Upp Upp War Pro Fac Upp Upp Res Qua Slots Evolved 14 | . . . 2 . . 4 2 2 . . . . 2 . . 2 . Power 1 | . . . . . . . 1 . . . . . . . . . . Propulsion 3 | . . . . . . 2 . . . . . . 1 . . . . Utility 7 | . . . 1 . . 1 1 2 . . . . 1 . . 1 . Weapon 3 | . . . 1 . . 1 . . . . . . . . . 1 . Parts Attached 167 | 6 3 7 3 11 . 18 19 8 . 2 . 16 20 4 . 37 13 Power 29 | 1 . 3 1 1 . 2 6 3 . . . 1 3 . . 7 1 Engine 7 | 1 . 2 1 1 . . 1 1 . . . . . . . . . Core 15 | . . 1 . . . 2 5 1 . . . . 2 . . 4 . Reactor 7 | . . . . . . . . 1 . . . 1 1 . . 3 1 Propulsion 38 | 2 . 1 1 3 . 5 4 . . . . 5 8 . . 8 1 Treads 23 | . . 1 . 2 . 5 3 . . . . 4 2 . . 5 1 Leg 4 | . . . . . . . . . . . . 1 3 . . . . Wheel 10 | 2 . . 1 . . . 1 . . . . . 3 . . 3 . Hover . | . . . . . . . . . . . . . . . . . . Flight 1 | . . . . 1 . . . . . . . . . . . . . Utility 53 | 1 1 1 1 1 . 7 4 4 . . . 4 7 2 . 13 7 Device 29 | . . 1 . 1 . 4 1 3 . . . 2 6 1 . 7 3 Storage 7 | 1 1 . . . . . 2 . . . . 1 . . . 1 1 Processor 3 | . . . 1 . . 1 . . . . . . . . . 1 . Hackware . | . . . . . . . . . . . . . . . . . . Protection 13 | . . . . . . 2 1 1 . . . 1 1 1 . 4 2 Artifact 1 | . . . . . . . . . . . . . . . . . 1 Weapon 47 | 2 2 2 . 6 . 4 5 1 . 2 . 6 2 2 . 9 4 Energy Gun 25 | 2 . 1 . 5 . 2 2 . . 1 . 5 2 2 . 3 . Energy Cannon 8 | . . . . . . 2 1 . . 1 . . . . . 3 1 Ballistic Gun 6 | . 2 1 . . . . . . . . . . . . . 1 2 Ballistic Cannon 1 | . . . . . . . . 1 . . . . . . . . . Launcher 3 | . . . . . . . 1 . . . . 1 . . . . 1 Special Weapon 2 | . . . . 1 . . . . . . . . . . . 1 . Impact Weapon . | . . . . . . . . . . . . . . . . . . Slashing Weapon 1 | . . . . . . . 1 . . . . . . . . . . Piercing Weapon 1 | . . . . . . . . . . . . . . . . 1 . Special Melee Weapon . | . . . . . . . . . . . . . . . . . . Unidentified Prototypes 10 | . 1 . 1 4 . . . . . . . 1 . . . 1 2 Corrupted Parts 6 | . . . . . . . . . . . . 6 . . . . . System Corruption 36 | . . . . . . . . . . . . 36 . . . . . Parts Lost 95 | . . 3 1 3 . 5 3 2 . 1 . 12 15 8 2 11 29 Power 18 | . . 1 . 1 . . 2 1 . . . 1 4 . 2 2 4 Propulsion 24 | . . 1 1 1 . 2 1 . . . . 4 5 1 . . 8 Utility 25 | . . . . . . 1 . . . . . 3 4 2 . 5 10 Weapon 28 | . . 1 . 1 . 2 . 1 . 1 . 4 2 5 . 4 7 Highest Loss Streak 18 | . . 2 1 1 . 3 1 1 . 1 . 6 2 7 2 9 18 To Critical Strikes 2 | . . . . . . . . 1 . . . . . . . . 1 Average Backups 13 | 3 8 14 14 14 14 14 14 14 15 14 15 10 14 14 10 14 13 Power 1 | . 1 1 2 1 1 1 1 1 2 2 2 1 1 1 1 . . Propulsion 2 | 2 4 5 4 3 5 1 . 2 3 3 3 1 . 2 2 5 4 Utility 5 | . . 2 4 3 2 6 6 4 5 5 5 4 6 6 6 6 5 Weapon 4 | . 2 5 4 5 5 3 5 5 5 4 5 3 5 4 1 2 2 Tool/Special . | . . . . . . . . . . . . . . . . . . Unused Backups 46 | . 2 2 5 6 . 8 6 2 . 1 . 2 1 2 . 7 2 Power 4 | . . 1 1 . . 1 . . . . . . . . . . 1 Propulsion 14 | . 2 . 2 1 . 2 1 . . . . 1 . . . 5 . Utility 20 | . . . . 3 . 2 5 2 . 1 . 1 1 2 . 2 1 Weapon 7 | . . 1 2 2 . 2 . . . . . . . . . . . Tool/Special 1 | . . . . . . 1 . . . . . . . . . . . Average Slot Usage (%) 97 | . 85 99 98 99 100 98 96 99 100 100 100 99 98 98 85 88 76 Engine 3 | . 14 13 4 10 11 2 . 1 5 5 5 1 . . . . . Core 5 | . . . 6 . . 4 11 7 5 5 5 9 4 10 6 6 3 Treads 18 | . . 6 11 18 22 29 21 23 23 23 23 20 18 9 5 6 6 Wheel 4 | . 28 21 10 3 . . 1 . . . . . . 14 15 11 12 Device 16 | . . 13 11 11 11 9 13 22 23 23 23 20 21 25 26 21 12 Storage 8 | . 14 14 11 11 11 7 6 5 5 5 5 7 10 10 10 9 8 Processor 5 | . . . 10 11 11 7 6 5 5 5 5 5 4 . . 1 2 Protection 3 | . . . . . . 4 5 5 5 5 5 5 5 5 5 4 5 Energy Gun 14 | . 16 8 . 12 22 22 14 11 11 15 17 12 20 14 10 9 4 Energy Cannon 3 | . . . . . . 5 10 6 4 1 . 4 . 4 . 8 5 Ballistic Gun 4 | . 11 19 32 17 11 1 . . . . . . . . . . 2 Peak Build Rating 162 | 6 12 21 24 28 27 43 60 72 70 71 71 77 110 110 96 148 162 Average Rating 63 | 4 8 18 23 26 27 40 56 69 70 70 71 68 92 107 93 133 127 On Entrance 55 | . 6 12 18 24 27 27 43 58 70 70 71 71 75 108 96 85 130 Avg Prop Armor Cover (%) 8 | . . 11 9 9 . . 13 . . . . 3 6 9 5 7 8 Naked Turns . | . . . . . . . . . . . . . . . . . . Heaviest Build 138 | 11 29 38 38 41 41 50 69 82 79 81 75 79 93 95 79 123 138 Greatest Support 149 | 26 26 26 10 46 46 92 86 80 80 80 80 91 121 48 48 149 48 Greatest Overweight (x) 5 | . 1 3 3 3 . . 2 1 . 1 . 1 5 2 1 2 2 Average Overweight (x) . | . . 1 3 . . . . . . . . . . 1 1 1 1 Largest Inventory Capacity 15 | 8 15 15 15 15 15 15 15 15 15 15 15 15 15 15 15 15 15 Average Capacity 14 | 6 14 15 15 15 15 15 15 15 15 15 15 15 15 15 15 15 15 Most Carried 15 | 6 13 15 15 15 15 15 15 15 15 15 15 15 15 15 10 15 15 Average Carried 13 | 3 8 14 14 14 14 14 14 14 15 14 15 10 14 14 10 14 13 Final Capacity 15 | 8 15 15 15 15 15 15 15 15 15 15 15 15 15 15 15 15 15 Final Carried 15 | 6 13 15 14 14 15 15 15 15 15 15 15 15 14 10 10 15 4 Class Distribution -------------------- 22% | Machinist-Skirmisher 18% | Gunner 13% | Scavenger-Skirmisher 11% | Mutant 10% | Scavenger-Tank 8% | Skirmisher 6% | Commander-Gunner 4% | Tank Dominant Class ---------------- Mutant | -10/Materials Mutant | -10/Mines Gunner | -9/Materials Gunner | -9/Storage Commander-Gunner | -9/Recycling Gunner | -7/Factory Skirmisher | -6/Factory Machinist-Skirmisher | -5/Factory Machinist-Skirmisher | -5/Upper Caves Machinist-Skirmisher | -5/Upper Caves Machinist-Skirmisher | -5/Warlord Scavenger-Skirmisher | -4/Proximity Caves Scavenger-Tank | -4/Factory Pyromaniac-Tank | -4/Upper Caves Mutant | -4/Upper Caves Tank | -3/Research Scavenger-Tank | -3/Quarantine Resources | -11 -10 -10 -9 -9 -9 -7 -6 -5 -5 -5 -5 -4 -4 -4 -4 -3 -3 ----------- Run | Yrd Mat Min Mat Sto Rec Fac Fac Fac Upp Upp War Pro Fac Upp Upp Res Qua Matter Collected 4117 | 192 78 294 360 374 50 307 467 117 86 39 . 324 522 120 . 524 263 Remotely . | . . . . . . . . . . . . . . . . . . Salvage Created 14514 | . 247 419 785 972 479 2036 2121 338 437 39 . 985 3185 537 . 1034 900 Parts 510 | . 21 13 47 53 18 78 66 12 13 . . 23 51 14 . 64 37 Haulers Intercepted 14 | . 1 . 3 3 . 1 2 . . . . 1 3 . . . . Recyclers Shooed 6 | . . 1 . . . 1 . . . . . . . . . 3 1 Parts Field Recycled . | . . . . . . . . . . . . . . . . . . Retrieved Matter . | . . . . . . . . . . . . . . . . . . Parts Self-Destructed 35 | . . . . . . . . . 13 . . 6 . 16 . . . Prevented 13 | . . . . . . . . . . . . 13 . . . . . Parts Restored . | . . . . . . . . . . . . . . . . . . Kills | -11 -10 -10 -9 -9 -9 -7 -6 -5 -5 -5 -5 -4 -4 -4 -4 -3 -3 ------- Run | Yrd Mat Min Mat Sto Rec Fac Fac Fac Upp Upp War Pro Fac Upp Upp Res Qua Combat Hostiles Destroyed 200 | . 7 16 15 14 2 30 21 5 7 1 . 11 37 9 . 15 10 Melee 2 | . . . . . . . . . . . . . . . . 2 . Guns 120 | . 7 16 15 13 2 17 6 4 5 1 . 3 22 4 . 5 . Cannons 39 | . . . . . . 7 8 1 2 . . 1 . 3 . 7 10 AOE 4 | . . . . . . . 3 . . . . 1 . . . . . Classes Destroyed 20 | . 4 2 4 1 . 3 . . . . . . 1 . . 3 2 Worker 10 | . . 2 . . . 1 1 . . . . . . . . 1 5 Builder 7 | . . . . . . 1 4 . . . . . . . . . 2 Tunneler 2 | . . . 1 . . . . . . . . . . . . 1 . Hauler 14 | . 1 . 3 3 . 1 2 . . . . 1 3 . . . . Recycler 23 | . . . 1 2 5 4 5 . . . . . 2 . . 2 2 Mechanic 1 | . . . . . . . . . . . . . 1 . . . . Operator 3 | . . . 1 . . 1 . . . . . . 1 . . . . Watcher 5 | . 2 . 1 1 . 1 . . . . . . . . . . . Swarmer 19 | . 6 . 6 . . . 3 . 1 . . . . 3 . . . Cutter 3 | . . . . . . . . . . . . . . . . 3 . Grunt 89 | . 1 4 7 7 . 17 14 3 5 . . 9 14 5 . . 3 Brawler 2 | . . . . 2 . . . . . . . . . . . . . Duelist 1 | . . . . . . . . . . . . . . . . . 1 Researcher 1 | . . . . . . . . . . . . . . . . . 1 Sentry 28 | . . . 2 5 2 5 2 2 1 . . . 4 1 . . 4 Specialist 2 | . . . . . . . . . . . . . . . . 2 . Hunter 14 | . . . . . . 2 . . . . . 2 6 . . 2 2 Programmer 27 | . . . . . . 6 2 . . 1 . . 13 . . 5 . Heavy 3 | . . . . . . . . . . . . . . . . 3 . Assembled 12 | . . 12 . . . . . . . . . . . . . . . Best Kill Streak 9 | . 5 4 7 9 5 8 6 3 4 1 . 4 5 3 . 5 8 Combat Bots Only 7 | . 4 4 3 5 1 7 4 3 4 1 . 4 4 3 . 3 3 Max Kills in Single Turn 3 | . 1 1 2 1 3 2 3 1 1 1 . 1 2 1 . 2 3 Gunslinging 1 | . . . 1 . . . . . . . . . 1 . . . . Exploded 3 | . . . . . . . 3 . . . . 1 . . . . . Melee 1 | . . . . . . . . . . . . . . . . 1 . Uniques/NPCs Destroyed . | . . . . . . . . . . . . . . . . . . Combat | -11 -10 -10 -9 -9 -9 -7 -6 -5 -5 -5 -5 -4 -4 -4 -4 -3 -3 -------- Run | Yrd Mat Min Mat Sto Rec Fac Fac Fac Upp Upp War Pro Fac Upp Upp Res Qua Hostile Shots Fired 1660 | . 16 35 44 50 10 241 83 17 31 8 . 134 212 86 28 280 385 Missed 494 | . 6 7 16 13 6 78 22 3 5 4 . 30 75 29 15 90 95 Hits 1166 | . 10 28 28 37 4 163 61 14 26 4 . 104 137 57 13 190 290 Melee 20 | . . 6 . . . . . . . . . . . . . 10 4 Projectile 1146 | . 10 22 28 37 4 163 61 14 26 4 . 104 137 57 13 180 286 AOE 5 | . . 4 . . . . . . . . . . 1 . . . . Critical Strikes 60 | . 1 . 1 2 . 6 3 2 1 . . 10 11 1 1 7 14 Part Disruptions 2 | . . . . . . . . . . . . . 2 . . . . Damage Taken 20567 | . 83 595 330 500 80 1770 1354 307 488 83 . 2005 2216 721 233 3763 6039 Core 1935 | . 22 148 36 88 14 182 97 44 . 22 . 118 123 33 15 234 759 Absorbed by Shields 1046 | . . . . . . . . . . . . . 768 250 . . 28 Reduced by Siege Mode 188 | . . . . . . . . . . . . . . . . . 188 Redirected to Core 20 | . . . . . . . . . . . . . . . . . 20 Regen/Repaired (Parts) 1055 | . . . 134 . . 511 410 . . . . . . . . . . Core Remaining (%) 75 | 100 . 32 . . 65 74 88 . . . . 81 . . 85 . . Volleys Fired 516 | . 21 41 35 36 10 82 59 9 11 4 . 28 97 17 . 32 34 Largest 5 | . 2 2 3 3 3 4 4 4 4 4 . 4 4 4 . 5 3 Hottest 515 | . 80 98 69 128 128 246 284 280 255 280 . 309 315 341 . 515 300 Shots Fired 1606 | . 42 78 105 97 26 277 184 34 44 17 . 92 356 62 . 130 62 Gun 1257 | . 42 78 105 97 26 209 94 18 22 9 . 59 353 46 . 65 34 Cannon 336 | . . . . . . 68 88 16 22 8 . 22 3 16 . 65 28 Launcher 13 | . . . . . . . 2 . . . . 11 . . . . . Special . | . . . . . . . . . . . . . . . . . . Kinetic 291 | . 4 57 105 58 10 13 . 7 11 4 . 6 . . . 1 15 Thermal 1217 | . 19 21 . 4 . 249 182 27 33 13 . 75 356 62 . 129 47 Explosive . | . . . . . . . . . . . . . . . . . . Electromagnetic 98 | . 19 . . 35 16 15 2 . . . . 11 . . . . . Robot Hit Streak 35 | . 6 15 17 17 24 34 25 26 6 4 . 8 21 35 . 11 14 Robot Miss Streak 5 | . 3 2 2 2 1 4 4 1 3 4 . 2 5 3 . 3 4 Penetration Max 2 | . . . . . . . . . . . . . . . . . 2 Secondary Targets 15 | . 1 3 2 2 . 1 . . . . . . 6 . . . . Max Gunslinging Chain 1 | . 1 1 1 1 . 1 . . . . . . 1 . . . . Shots Hit Robots 1062 | . 23 55 68 60 18 180 118 21 22 8 . 62 269 42 . 79 37 Core Hits 440 | . 11 27 27 25 10 68 54 12 15 2 . 26 93 16 . 29 25 Critical Kills 13 | . . . . . . . 1 . . . . . . 1 . 1 10 Critical Parts Destroyed 14 | . . . . . . . . . . . . . . . . 2 12 Critical Strikes 100 | . . 1 . 1 1 21 8 2 2 . . 3 28 6 . 4 23 Burn 69 | . . 1 . . . 20 7 2 2 . . 3 28 5 . 1 . Meltdown 3 | . . . . . . . 1 . . . . . . 1 . 1 . Destroy 25 | . . . . . . . . . . . . . . . . 2 23 Corrupt 3 | . . . . 1 1 1 . . . . . . . . . . . Melee Attacks 58 | . . . . . . . 3 . 12 2 . 8 15 7 . 3 8 Impact . | . . . . . . . . . . . . . . . . . . Slashing 48 | . . . . . . . 3 . 12 2 . 8 15 7 . 1 . Piercing 10 | . . . . . . . . . . . . . . . . 2 8 Sneak Attacks 1 | . . . . . . . . . . . . 1 . . . . . Combat Hostiles . | . . . . . . . . . . . . . . . . . . Follow-up Attacks . | . . . . . . . . . . . . . . . . . . Damage Inflicted 31307 | . 277 916 1087 1128 586 3826 3392 531 518 234 . 1954 6335 1298 . 3294 5931 Guns 19182 | . 277 916 1087 1128 394 2704 1655 287 354 110 . 1028 6289 944 . 1487 522 Cannons 10718 | . . . . . . 1122 1280 244 164 124 . 294 38 354 . 1689 5409 Explosions 1193 | . . . . . 192 . 449 . . . . 552 . . . . . Melee 180 | . . . . . . . . . . . . 76 . . . 104 . Ramming 34 | . . . . . . . 8 . . . . 4 8 . . 14 . Kinetic 2996 | . 26 579 1087 490 89 135 . 80 82 59 . 136 . . . 11 222 Thermal 25779 | . 123 337 . . 192 3445 2935 451 436 175 . 1186 6327 1298 . 3165 5709 Explosive 427 | . . . . . . . 427 . . . . . . . . . . Electromagnetic 1891 | . 128 . . 638 305 246 22 . . . . 552 . . . . . Impact . | . . . . . . . . . . . . . . . . . . Slashing 76 | . . . . . . . . . . . . 76 . . . . . Piercing 104 | . . . . . . . . . . . . . . . . 104 . Highest Corruption 36 | . . 8 . . 1 2 1 . . 1 1 36 20 20 20 10 21 Average Corruption 6 | . . 7 . . 1 1 1 . . 1 1 21 9 20 20 7 17 Corruption Purged . | . . . . . . . . . . . . . . . . . . Corruption Blocked . | . . . . . . . . . . . . . . . . . . Effects 201 | . . 18 . . 1 28 1 . . 5 2 1 56 35 1 27 26 Message Errors 48 | . . 6 . . 1 3 . . . . 1 . 16 9 1 8 3 Matter Fused 53 | . . 4 . . . 4 . . . 1 1 1 14 11 . 7 10 Heat Flow Errors 19 | . . 1 . . . 3 . . . 1 . . 4 3 . 3 4 Energy Discharges 21 | . . 3 . . . 4 . . . . . . 3 3 . 7 1 Parts Rejected 1 | . . . . . . . . . . . . . . 1 . . . Parts Fused 1 | . . . . . . 1 . . . . . . . . . . . Data Loss (minor) 31 | . . 4 . . . 9 1 . . 1 . . 8 3 . . 5 Data Loss (major) 4 | . . . . . . 3 . . . . . . . . . . 1 Misfires 5 | . . . . . . 1 . . . 1 . . 1 1 . . 1 Alerts 2 | . . . . . . . . . . 1 . . . 1 . . . Misdirections 2 | . . . . . . . . . . . . . . . . 1 1 Weapon Failures 14 | . . . . . . . . . . . . . 10 3 . 1 . Overload Shots . | . . . . . . . . . . . . . . . . . . Overflow Damage 1579 | . . . . . . 34 157 . . . . . . 32 . 119 1237 Projectiles 1443 | . . . . . . 34 21 . . . . . . 32 . 119 1237 Explosions 136 | . . . . . . . 136 . . . . . . . . . . Melee . | . . . . . . . . . . . . . . . . . . Knockbacks 6 | . . . . . . . . 1 . 1 . 4 . . . . . Impact . | . . . . . . . . . . . . . . . . . . Kinetic 6 | . . . . . . . . 1 . 1 . 4 . . . . . Secondary . | . . . . . . . . . . . . . . . . . . Self-Inflicted Damage 318 | . . . . . 28 . 290 . . . . . . . . . . Shots 5 | . . . . . 1 . 4 . . . . . . . . . . Rammed 3 | . . . . . . . 1 . . . . 1 1 . . . . Targets Rammed 4 | . . . . . . . 1 . . . . 1 1 . . 1 . Kicked . | . . . . . . . . . . . . . . . . . . Crushed 1 | . . . . . . . . . . . . . . . . 1 . Highest Temperature 513 | . 72 206 14 404 10 397 430 108 318 135 . 418 347 209 . 513 306 Average Temperature 112 | . 33 70 14 66 8 96 155 47 119 58 . 186 63 61 . 194 115 Received Heat Transfer 4613 | . 6 116 156 216 9 609 471 72 210 . . 530 222 54 . 600 1342 Effects 25 | . . . . . . . 6 . . . . 3 1 . . 15 . Shutdowns 5 | . . . . . . . 3 . . . . 1 . . . 1 . Energy Bleed 4 | . . . . . . . . . . . . 1 1 . . 2 . Interference 9 | . . . . . . . 1 . . . . . . . . 8 . Matter Decay 4 | . . . . . . . 2 . . . . 1 . . . 1 . Short Circuit 1 | . . . . . . . . . . . . . . . . 1 . Damage (major) 2 | . . . . . . . . . . . . . . . . 2 . Siege Activations 1 | . . . . . . . . . . . . . . . . . 1 Total Turns 26 | . . . . . . . . . . . . . . . . . 26 Longest Duration 26 | . . . . . . . . . . . . . . . . . 26 Martial Activations . | . . . . . . . . . . . . . . . . . . Shielding Activations . | . . . . . . . . . . . . . . . . . . Robots Disrupted . | . . . . . . . . . . . . . . . . . . Combat Hostiles . | . . . . . . . . . . . . . . . . . . Robots Corrupted 4 | . . . . 1 . . . . . . . 3 . . . . . Combat Hostiles 4 | . . . . 1 . . . . . . . 3 . . . . . Parts Fried 9 | . . . . 4 1 1 . . . . . 3 . . . . . Impact Corruptions . | . . . . . . . . . . . . . . . . . . Robots Melted 34 | . . . . . . 6 5 . . . . 3 16 2 . 2 . Combat Hostiles 31 | . . . . . . 6 4 . . . . 3 15 2 . 1 . Parts Melted 175 | . . . . . 1 32 18 2 3 . . 11 91 11 . 6 . Heat Transferred 42917 | . 275 666 . . 300 7733 6072 1072 1111 274 . 2846 16172 2585 . 3108 703 Parts Sabotaged . | . . . . . . . . . . . . . . . . . . Parts Stolen . | . . . . . . . . . . . . . . . . . . Parts Stripped . | . . . . . . . . . . . . . . . . . . Power Chain Reactions 1 | . . . . . 1 . . . . . . . . . . . . Alert | -11 -10 -10 -9 -9 -9 -7 -6 -5 -5 -5 -5 -4 -4 -4 -4 -3 -3 ------- Run | Yrd Mat Min Mat Sto Rec Fac Fac Fac Upp Upp War Pro Fac Upp Upp Res Qua Maximum Alert Level 2 | . . . . 1 . 2 1 . . . . . 2 . . . 1 Low Security (%) 82 | 100 100 100 100 93 100 69 61 100 . . . . 66 . . 100 87 Level 1 10 | . . . . 6 . 10 38 . . . . . 11 . . . 12 Level 2 7 | . . . . . . 20 . . . . . . 21 . . . . Level 3 . | . . . . . . . . . . . . . . . . . . Level 4 . | . . . . . . . . . . . . . . . . . . Level 5 . | . . . . . . . . . . . . . . . . . . High Security . | . . . . . . . . . . . . . . . . . . Max Security . | . . . . . . . . . . . . . . . . . . Peak Influence 521 | . 80 50 190 218 84 428 365 178 . . . . 521 . . 198 303 Initial 200 | . . 6 9 71 84 200 197 178 . . . . 68 . . 47 91 Average 128 | . 22 4 82 146 12 208 179 113 . . . . 169 . . 89 137 Influence Increases 6857 | . 238 110 448 553 126 1229 787 138 150 30 . 410 1165 200 . 557 716 Destroy 0b10 Robot/C 3860 | . 140 80 300 320 60 620 420 100 140 20 . 220 740 180 . 300 220 Destroy 0b10 Robot/NC 320 | . 15 10 35 30 25 45 60 . . . . 5 35 . . 15 45 Destroy Leader 886 | . 26 20 68 88 . 194 104 30 10 10 . 20 176 20 . 90 30 Allied During Kill 43 | . . . . 24 17 2 . . . . . . . . . . . Successful Hack 207 | . 42 . 12 15 18 40 15 2 . . . . 30 . . 33 . Disable Machine 510 | . 15 . 30 75 . 75 90 . . . . . 45 . . 30 150 Destroy Structure 231 | . . . 3 1 6 8 23 6 . . . . 34 . . 44 106 Advance Influence 200 | . . . . . . 200 . . . . . . . . . . . Partial Spotted 15 | . . . . . . . . . . . . . . . . 15 . Lose Combat Pursuer 585 | . . . . . . 45 75 . . . . 165 105 . . 30 165 Influence Decreases 6610 | . 221 101 304 505 344 825 826 429 224 30 . 301 755 607 42 464 632 Entered New Map 1035 | . . 11 17 99 134 . 207 187 29 . . . 41 193 22 23 72 Time Decay 4566 | . 221 90 277 356 190 695 589 222 195 30 . 239 564 334 . 294 270 Lost Part 852 | . . . 10 30 . 50 30 20 . . . 62 150 80 20 110 290 Lost Ally 157 | . . . . 20 20 80 . . . . . . . . . 37 . Squads Dispatched 51 | . . . 3 1 . 13 10 1 . . . . 6 . . 10 7 Investigation 14 | . . . 3 1 . 3 4 1 . . . . . . . 1 1 Extermination 14 | . . . . . . 5 2 . . . . . 3 . . 3 1 Reinforcement 15 | . . . . . . 3 1 . . . . . 3 . . 6 2 Assault 1 | . . . . . . 1 . . . . . . . . . . . Garrison 7 | . . . . . . 1 3 . . . . . . . . . 3 Intercept . | . . . . . . . . . . . . . . . . . . Searches Triggered . | . . . . . . . . . . . . . . . . . . Construction Impeded 1 | . . . . . . . 1 . . . . . . . . . . Haulers Reinforced 3 | . . . . . . 2 . . . . . . 1 . . . . Active Scanning Responses . | . . . . . . . . . . . . . . . . . . Cargo Convoy Interrupts . | . . . . . . . . . . . . . . . . . . Stealth | -11 -10 -10 -9 -9 -9 -7 -6 -5 -5 -5 -5 -4 -4 -4 -4 -3 -3 --------- Run | Yrd Mat Min Mat Sto Rec Fac Fac Fac Upp Upp War Pro Fac Upp Upp Res Qua Distress Signals 9 | . . . 2 . . 1 . . . . . . 1 . . 1 4 Communications Jammed . | . . . . . . . . . . . . . . . . . . Distress Signals . | . . . . . . . . . . . . . . . . . . Times Spotted 287 | . 14 20 20 16 2 41 27 4 7 1 . 18 52 11 4 20 30 Peak Tracking Total 14 | . 4 3 3 4 1 4 4 2 4 1 . 5 6 4 4 4 14 Tactical Retreats 18 | . . 1 . . . 2 3 . . . . 4 4 . . 2 2 Traps | -11 -10 -10 -9 -9 -9 -7 -6 -5 -5 -5 -5 -4 -4 -4 -4 -3 -3 ------- Run | Yrd Mat Min Mat Sto Rec Fac Fac Fac Upp Upp War Pro Fac Upp Upp Res Qua Traps Triggered 12 | . . 1 1 3 . 1 3 . . . . . . . . . 3 Indirectly . | . . . . . . . . . . . . . . . . . . Trap Hack Attempts . | . . . . . . . . . . . . . . . . . . Triggered . | . . . . . . . . . . . . . . . . . . Disarmed . | . . . . . . . . . . . . . . . . . . Reprogrammed . | . . . . . . . . . . . . . . . . . . Reused . | . . . . . . . . . . . . . . . . . . Traps Extracted . | . . . . . . . . . . . . . . . . . . Installed . | . . . . . . . . . . . . . . . . . . Triggered . | . . . . . . . . . . . . . . . . . . Machines | -11 -10 -10 -9 -9 -9 -7 -6 -5 -5 -5 -5 -4 -4 -4 -4 -3 -3 ---------- Run | Yrd Mat Min Mat Sto Rec Fac Fac Fac Upp Upp War Pro Fac Upp Upp Res Qua Machines Disabled 34 | . 1 . 2 5 . 5 6 . . . . . 3 . . 2 10 Max in Single Turn 3 | . 1 . 2 1 . 1 2 . . . . . 1 . . 1 3 Garrison Access 3 | . . . . . . 1 1 1 . . . . . . . . . Machines Repaired . | . . . . . . . . . . . . . . . . . . Machines Dismantled 3 | . . . . 3 . . . . . . . . . . . . . Machines Sabotaged . | . . . . . . . . . . . . . . . . . . Overloaded Fab Kills . | . . . . . . . . . . . . . . . . . . Hacking | -11 -10 -10 -9 -9 -9 -7 -6 -5 -5 -5 -5 -4 -4 -4 -4 -3 -3 --------- Run | Yrd Mat Min Mat Sto Rec Fac Fac Fac Upp Upp War Pro Fac Upp Upp Res Qua Machines Accessed 68 | . 9 . 8 6 9 10 8 3 . 1 . . 7 1 . 6 . Terminals 35 | . 7 . 6 5 6 4 2 . . . . . 3 . . 2 . Fabricators 8 | . . . . . . 3 2 1 . . . . 1 . . 1 . Repair Stations 6 | . . . 1 . . 2 2 . . . . . 1 . . . . Recycling Units 9 | . 2 . 1 1 3 . . . . . . . . . . 2 . Scanalyzers 5 | . . . . . . . 1 1 . . . . 2 . . 1 . Garrison Access 3 | . . . . . . 1 1 1 . . . . . . . . . Total Hacks 169 | . 18 . 27 20 24 29 18 9 . 1 . . 15 1 . 7 . Successful 86 | . 11 . 10 8 10 18 10 7 . 1 . . 6 1 . 4 . Failed 82 | . 7 . 17 12 14 11 8 2 . . . . 8 . . 3 . Catastrophic 15 | . 2 . 1 3 2 3 3 . . . . . 1 . . . . Database Lockouts 1 | . . . . . . . . . . . . . 1 . . . . Manual 49 | . 10 . 15 5 12 6 . . . . . . 1 . . . . Terminals 98 | . 15 . 22 17 20 12 3 . . . . . 7 . . 2 . Fabricators 18 | . . . . . . 6 5 4 . . . . 2 . . 1 . Repair Stations 19 | . . . 3 . . 9 6 . . . . . 1 . . . . Recycling Units 14 | . 3 . 2 3 4 . . . . . . . . . . 2 . Scanalyzers 13 | . . . . . . . 2 4 . . . . 5 . . 2 . Garrison Access 5 | . . . . . . 2 2 1 . . . . . . . . . Terminal Hacks 30 | . 5 . 5 6 5 3 . . . 1 . . 3 1 . 1 . Record 4 | . . . . . 1 . . . . 1 . . 2 . . . . Part Schematic 5 | . . . . 1 3 1 . . . . . . . . . . . Robot Analysis 4 | . 1 . 3 . . . . . . . . . . . . . . Prototype ID Bank 3 | . . . . 2 1 . . . . . . . . . . . . Open Door 2 | . . . . . . . . . . . . . . 1 . 1 . Level Access Points 1 | . 1 . . . . . . . . . . . . . . . . Branch Access Points 1 | . . . 1 . . . . . . . . . . . . . . Terminal Index 2 | . 1 . . . . 1 . . . . . . . . . . . Alert Level 1 | . . . . . . 1 . . . . . . . . . . . Locate Traps 4 | . 1 . 1 1 . . . . . . . . 1 . . . . Dispatch Records 1 | . 1 . . . . . . . . . . . . . . . . Hauler Manifests 1 | . . . . 1 . . . . . . . . . . . . . Zone Layout 1 | . . . . 1 . . . . . . . . . . . . . Fabricator Hacks 11 | . . . . . . 4 4 2 . . . . . . . 1 . Network Status 1 | . . . . . . 1 . . . . . . . . . . . Load Schematic 5 | . . . . . . 2 2 1 . . . . . . . . . Build 5 | . . . . . . 1 2 1 . . . . . . . 1 . Repair Station Hacks 14 | . . . 2 . . 8 4 . . . . . . . . . . Scan Component 7 | . . . 1 . . 4 2 . . . . . . . . . . Repair 7 | . . . 1 . . 4 2 . . . . . . . . . . Recycling Unit Hacks 10 | . 3 . 2 1 3 . . . . . . . . . . 1 . Report Inventory 7 | . 2 . 1 1 3 . . . . . . . . . . . . Retrieve Components 3 | . 1 . 1 . . . . . . . . . . . . 1 . Scanalyzer 9 | . . . . . . . 1 4 . . . . 3 . . 1 . Insert Component 2 | . . . . . . . . 1 . . . . 1 . . . . Analyze 2 | . . . . . . . . 1 . . . . 1 . . . . Retrieve Study 5 | . . . . . . . 1 2 . . . . 1 . . 1 . Garrison Access Hacks 3 | . . . . . . 1 1 1 . . . . . . . . . Seal Access 3 | . . . . . . 1 1 1 . . . . . . . . . Unauthorized Hacks 9 | . 3 . 1 1 2 2 . . . . . . . . . . . Terminals 9 | . 3 . 1 1 2 2 . . . . . . . . . . . Botnet 9 | . 3 . 1 1 2 2 . . . . . . . . . . . Fabricators . | . . . . . . . . . . . . . . . . . . Repair Stations . | . . . . . . . . . . . . . . . . . . Recycling Units . | . . . . . . . . . . . . . . . . . . Scanalyzers . | . . . . . . . . . . . . . . . . . . Garrison Access . | . . . . . . . . . . . . . . . . . . Data Cores Recovered 2 | . . . 1 . . 1 . . . . . . . . . . . Used . | . . . . . . . . . . . . . . . . . . Hacking Detections 51 | . 6 . 7 6 6 8 7 2 . . . . 6 . . 3 . Full Trace Events 22 | . 1 . 7 2 4 3 4 1 . . . . . . . . . Feedback Events 1 | . . . . . 1 . . . . . . . . . . . . Corruption 1 | . . . . . 1 . . . . . . . . . . . . Feedback Blocked . | . . . . . . . . . . . . . . . . . . Robot Schematics Acquired 1 | . . . . . . . . . . . . . . . . . 1 Robots Built 4 | . . . . . . . . . . . . . . . . 4 . Authchips . | . . . . . . . . . . . . . . . . . . Time 40 | . . . . . . . . . . . . . . . . 40 . Total Robot Build Rating 4 | . . . . . . . . . . . . . . . . 4 . Part Schematics Acquired 9 | . . . . 1 3 1 . 1 . . . . 1 . . . 2 Parts Built 8 | . . . . . . 2 4 2 . . . . . . . . . Authchips . | . . . . . . . . . . . . . . . . . . Time 292 | . . . . . . 73 146 73 . . . . . . . . . Total Part Build Rating 24 | . . . . . . 6 12 6 . . . . . . . . . Part Studies Acquired 5 | . . . . . . . 1 2 . . . . 1 . . 1 . Parts Repaired 7 | . . . 1 . . 4 2 . . . . . . . . . . Time 286 | . . . 51 . . 165 70 . . . . . . . . . . Parts Recycled . | . . . . . . . . . . . . . . . . . . Recycled Matter . | . . . . . . . . . . . . . . . . . . Retrieved Matter . | . . . . . . . . . . . . . . . . . . Retrieved Components 15 | . 9 . 4 . . . . . . . . . . . . 2 . Parts Scanalyzed 2 | . . . . . . . . 1 . . . . 1 . . . . Part Schematics Acquired 2 | . . . . . . . . 1 . . . . 1 . . . . Parts Damaged 1 | . . . . . . . . . . . . . 1 . . . . Bothacking | -11 -10 -10 -9 -9 -9 -7 -6 -5 -5 -5 -5 -4 -4 -4 -4 -3 -3 ------------ Run | Yrd Mat Min Mat Sto Rec Fac Fac Fac Upp Upp War Pro Fac Upp Upp Res Qua Used RIF Installer . | . . . . . . . . . . . . . . . . . . Robots Hacked . | . . . . . . . . . . . . . . . . . . Non-combat . | . . . . . . . . . . . . . . . . . . Combat . | . . . . . . . . . . . . . . . . . . Robot Hacks Applied . | . . . . . . . . . . . . . . . . . . Relay Couplers Released 4 | . . . . . . . . . . . . . 4 . . . . Programmers 4 | . . . . . . . . . . . . . 4 . . . . Fabnet Peak Effective % . | . . . . . . . . . . . . . . . . . . Robots Rewired . | . . . . . . . . . . . . . . . . . . Allies Hacked . | . . . . . . . . . . . . . . . . . . Hacks Repelled . | . . . . . . . . . . . . . . . . . . Allies | -11 -10 -10 -9 -9 -9 -7 -6 -5 -5 -5 -5 -4 -4 -4 -4 -3 -3 -------- Run | Yrd Mat Min Mat Sto Rec Fac Fac Fac Upp Upp War Pro Fac Upp Upp Res Qua Total Allies 17 | . . 3 . 10 . . . . . . . . . . . 4 . Largest Group 10 | . . 3 . 10 5 4 . . . . . . . . . 4 . Highest-Rated Group 88 | . . 40 . 88 40 32 . . . . . . . . . 24 . Highest-Rated Ally 16 | . . 16 . 16 8 8 . . . . . . . . . 6 . Total Orders 8 | . . 1 . . . . . . . . . . . . . 7 . ROAM 2 | . . 1 . . . . . . . . . . . . . 1 . FOLLOW 1 | . . . . . . . . . . . . . . . . 1 . EXPLORE 4 | . . . . . . . . . . . . . . . . 4 . RETURN 1 | . . . . . . . . . . . . . . . . 1 . Ally Attacks 77 | . . 35 . 15 9 18 . . . . . . . . . . . Total Damage 728 | . . 341 . 132 89 166 . . . . . . . . . . . Kills 7 | . . 3 . 2 1 1 . . . . . . . . . . . Allies Corrupted . | . . . . . . . . . . . . . . . . . . Allies Melted . | . . . . . . . . . . . . . . . . . . Intel | -11 -10 -10 -9 -9 -9 -7 -6 -5 -5 -5 -5 -4 -4 -4 -4 -3 -3 ------- Run | Yrd Mat Min Mat Sto Rec Fac Fac Fac Upp Upp War Pro Fac Upp Upp Res Qua Active Infowar (turns) 12380 | . . . . . . 1041 1803 476 1436 1379 313 1751 2138 750 15 798 480 Sensors 11417 | . . . . . . 1041 1803 476 1436 1379 313 1751 1175 750 15 798 480 Terrain 963 | . . . . . . . . . . . . . 963 . . . . Robot Analysis Total 4 | . 1 . 3 . . . . . . . . . . . . . . Derelict Logs Recovered 7 | . . 1 . . . . . . 1 2 . 2 . 1 . . . Drone Launches 6 | . . . . . . . . . . . . . . . . 6 . Drone Recoveries 2 | . . . . . . . . . . . . . . . . 2 . Exploration | -11 -10 -10 -9 -9 -9 -7 -6 -5 -5 -5 -5 -4 -4 -4 -4 -3 -3 ------------- Run | Yrd Mat Min Mat Sto Rec Fac Fac Fac Upp Upp War Pro Fac Upp Upp Res Qua Turns Passed 19457 | 54 656 1191 733 807 1038 2892 1844 476 1436 1379 313 1751 2154 750 15 1386 582 Spaces Moved 10328 | 44 558 920 437 353 615 1387 777 184 794 721 185 830 902 583 14 731 293 Core 1 | 1 . . . . . . . . . . . . . . . . . Treads 6332 | . . . . 251 615 1387 553 184 794 721 185 830 680 . . 129 3 Legs 152 | . . . . . . . . . . . . . 152 . . . . Wheels 3843 | 43 558 920 437 102 . . 224 . . . . . 70 583 14 602 290 Hover . | . . . . . . . . . . . . . . . . . . Flight . | . . . . . . . . . . . . . . . . . . Fastest Speed 50 | 50 90 105 125 125 160 156 130 170 170 170 170 165 110 110 110 110 90 Average Speed 149 | 88 96 114 125 150 160 162 160 179 170 171 170 184 169 110 110 131 124 Slowest Speed 250 | 90 105 125 125 240 160 165 240 210 170 210 170 219 224 130 110 250 225 Overloaded Moves . | . . . . . . . . . . . . . . . . . . Propulsion Burnouts . | . . . . . . . . . . . . . . . . . . Robots Hopped . | . . . . . . . . . . . . . . . . . . Potential Cave-ins 26 | . . . . . . . . . 8 . . 3 6 5 . . 4 Cave-ins Triggered 2 | . . . . . . . . . . . . . 1 . . . 1 Exploration Rate (%) 46 | 4 89 99 48 41 95 32 21 4 70 73 18 83 20 73 4 22 33 Regions Visited 17 Branch Regions 10 Pre-discovered Areas 4 | . . 1 . 1 . . . . . . . 1 . 1 . . . Known Exits Taken 11 | . . 1 1 . . 1 1 1 1 1 1 1 1 . . 1 . Unknown Exits Taken 6 | 1 1 . . 1 1 . . . . . . . . 1 1 . . Scrap Searched 8 | . . 1 . . . . . . . 1 . 3 . 3 . . . Spaces Dug 67 | . . . . . . . 5 . 12 2 . 7 14 7 . 1 19 Terrain Destroyed 188 | . . . . . 6 1 18 4 21 4 . 19 17 17 . 22 59 Melee 51 | . . . . . . . 3 . 12 2 . 7 14 7 . 1 5 Projectile 123 | . . . . . . 1 7 4 9 2 . 12 3 10 . 21 54 AOE 14 | . . . . . 6 . 8 . . . . . . . . . . Terrain Rammed . | . . . . . . . . . . . . . . . . . . Walls Destroyed . | . . . . . . . . . . . . . . . . . . Machines Disabled . | . . . . . . . . . . . . . . . . . . Actions | -11 -10 -10 -9 -9 -9 -7 -6 -5 -5 -5 -5 -4 -4 -4 -4 -3 -3 --------- Run | Yrd Mat Min Mat Sto Rec Fac Fac Fac Upp Upp War Pro Fac Upp Upp Res Qua Total 13026 | 55 633 984 547 502 648 1848 1244 310 834 847 184 968 1264 639 13 1066 440 Wait 1526 | . 38 4 59 40 23 307 330 92 16 114 . 53 183 19 . 186 62 Move 10311 | 43 557 919 436 352 614 1386 776 183 793 720 184 829 901 582 13 730 293 Hop . | . . . . . . . . . . . . . . . . . . Pick Up 158 | 6 9 8 6 9 1 23 16 9 . 2 . 14 17 4 . 29 5 Fast Attach 100 | 6 3 3 3 14 . 13 15 3 . . . 5 10 2 . 17 6 Attach 99 | . . 3 2 3 . 11 7 5 . 1 . 12 15 6 . 17 17 Detach 13 | . . . . 2 . 1 1 1 . . . . 2 . . 4 2 Swap 86 | . . 1 . 6 . 2 17 . 2 3 . 14 12 . . 24 5 Drop 130 | . 5 5 6 15 . 23 19 8 . 1 . 4 11 2 . 23 8 Fire 516 | . 21 41 35 36 10 82 59 9 11 4 . 28 97 17 . 32 34 Melee 58 | . . . . . . . 3 . 12 2 . 8 15 7 . 3 8 Ram . | . . . . . . . . . . . . . . . . . . Kick . | . . . . . . . . . . . . . . . . . . Crush 4 | . . . . . . . 1 . . . . 1 1 . . 1 . Escape Stasis . | . . . . . . . . . . . . . . . . . . Rewire . | . . . . . . . . . . . . . . . . . . Trap . | . . . . . . . . . . . . . . . . . . Miscellaneous 25 | . . . . 25 . . . . . . . . . . . . . Route ------- -11/Scrapyard -10/Materials (discovered 4 exits: *Mat x3 / [*Min]) -10/Mines (discovered 2 exits: *Mat x2) -9/Materials (discovered 4 exits: [*Mat] / *Min / *Sto x2) -9/Storage -9/Recycling -7/Factory -6/Factory -5/Factory (discovered 2 exits: *Fac / *Upp) -5/Upper Caves -5/Upper Caves -5/Warlord -4/Proximity Caves -4/Factory -4/Upper Caves -4/Upper Caves -3/Research -3/Quarantine History --------- Turn | Location | Event 22 | -11/Scrapyard | Discovered new exit (range 16) 55 | -11/Scrapyard | Entered Materials 114 | -10/Materials | Identified exit to Materials 310 | -10/Materials | Build established: Mutant 655 | -10/Materials | Derelicts attacked the area 681 | -10/Materials | Discovered new exit (range 10) 711 | -10/Materials | Entered Mines 730 | -10/Mines | Met a Derelict bent on vengeance 838 | -10/Mines | Assembled infested the area 843 | -10/Mines | Assisted by a Guerilla fighting off Assembled 915 | -10/Mines | Discovered exit to Materials (range 15) 918 | -10/Mines | Assisted by bots powering up and referring to "LRC-V3" 1132 | -10/Mines | Learned location of 1 exit from Materials 1143 | -10/Mines | Received a Rocket Launcher from a helpful Derelict 1262 | -10/Mines | Learned location of Storage (-9) 1646 | -10/Mines | Core integrity fell below 50% 1826 | -10/Mines | Discovered exit to Materials (range 8) 1902 | -10/Mines | Entered Materials 1902 | -9/Materials | Evolved 2 slots: Utility x1, Weapon x1 1903 | -9/Materials | Identified exit to Storage 2145 | -9/Materials | Repaired Imp. Assault Rifle 2218 | -9/Materials | Discovered new exit (range 8) 2346 | -9/Materials | Identified exit to Mines 2399 | -9/Materials | Discovered new exit (range 13) 2447 | -9/Materials | Build established: Gunner 2635 | -9/Materials | Entered Storage 3285 | -9/Storage | Learned location of Armory (-4) 3348 | -9/Storage | Assisted by bots powering up and referring to "LRC-V3" 3434 | -9/Storage | Discovered new exit (range 3) 3442 | -9/Storage | Entered Recycling 3442 | -9/Recycling | Accompanied by 5 allies 3652 | -9/Recycling | Build established: Commander-Gunner 3986 | -9/Recycling | Discovered new exit (range 16) 4480 | -9/Recycling | Entered Factory 4480 | -7/Factory | Accompanied by 4 allies 4480 | -7/Factory | Evolved 4 slots: Propulsion x2, Utility x1, Weapon x1 4981 | -7/Factory | Fabricated Arm. Treads (x2) 5027 | -7/Factory | Build established: Gunner 5063 | -7/Factory | Lost 3 parts (1u2w) 5080 | -7/Factory | Destroyed 7 combat bots 5765 | -7/Factory | Repaired Imp. Medium Laser 6559 | -7/Factory | Garrison activated, responded to threat 6773 | -7/Factory | Discovered new exit (range 8) 6823 | -7/Factory | Identified exit to Factory 7054 | -7/Factory | Repaired Arm. Treads 7088 | -7/Factory | Repaired Imp. Treads 7142 | -7/Factory | Repaired Imp. Cooling System 7163 | -7/Factory | Build established: Skirmisher 7280 | -7/Factory | First assault squad dispatched 7372 | -7/Factory | Entered another Factory area 7372 | -6/Factory | Evolved 2 slots: Power x1, Utility x1 7846 | -6/Factory | Garrison activated, responded to threat 8272 | -6/Factory | Repaired Arm. Treads+ 8380 | -6/Factory | Repaired Imp. Treads 8528 | -6/Factory | Fabricated Arm. Treads (x2) 8630 | -6/Factory | Discovered new exit (range 15) 8655 | -6/Factory | Identified exit to Factory 8827 | -6/Factory | Build established: Machinist-Skirmisher 8973 | -6/Factory | Fabricated Arm. Treads (x2) 9216 | -6/Factory | Entered another Factory area 9216 | -5/Factory | Evolved 2 slots: Utility x2 9456 | -5/Factory | Discovered new exit (range 16) 9540 | -5/Factory | Fabricated Imp. Light Armor Plating? 9600 | -5/Factory | Identified exit to Upper Caves 9692 | -5/Factory | Discovered new exit (range 15) 9692 | -5/Factory | Entered Upper Caves 10702 | -5/Upper Caves | Attracted the attention of an 0b10 checkpoint 11046 | -5/Upper Caves | Learned Factory stockpile data 11114 | -5/Upper Caves | Discovered new exit (range 4) 11119 | -5/Upper Caves | Encountered a Warlord checkpoint 11120 | -5/Upper Caves | Identified exit to Upper Caves 11128 | -5/Upper Caves | Entered another Upper Caves area 11418 | -5/Upper Caves | Encountered a Warlord checkpoint 11427 | -5/Upper Caves | Learned 4 Factory zone layouts 12021 | -5/Upper Caves | Entered a destroyed Warlord outpost 12137 | -5/Upper Caves | Discovered new exit (range 15) 12156 | -5/Upper Caves | Learned location of 1 exit from Factory 12182 | -5/Upper Caves | Identified exit to Warlord 12507 | -5/Upper Caves | Entered Warlord 12628 | -5/Warlord | System corruption cleaned by Quarantine Array 12706 | -5/Warlord | Discovered new exit (range 14) 12742 | -5/Warlord | Identified exit to Proximity Caves 12820 | -5/Warlord | Entered Proximity Caves 12946 | -4/Proximity Caves | Lost 6 parts (3n1u2w) 13231 | -4/Proximity Caves | Build established: Scavenger-Skirmisher 13296 | -4/Proximity Caves | Lost 4 parts (1p1n1u1w) 14259 | -4/Proximity Caves | Learned Research security intel 14335 | -4/Proximity Caves | Learned location of Quarantine (-3) 14526 | -4/Proximity Caves | Discovered new exit (range 8) 14551 | -4/Proximity Caves | Identified exit to Factory 14554 | -4/Proximity Caves | System corruption reached 10% 14566 | -4/Proximity Caves | System corruption reached 30% 14571 | -4/Proximity Caves | Entered Factory 14571 | -4/Factory | Evolved 2 slots: Propulsion x1, Utility x1 14572 | -4/Factory | Identified exit to Upper Caves 15617 | -4/Factory | Central database locked down 15830 | -4/Factory | Build established: Scavenger-Tank 16352 | -4/Factory | System corruption reached 10% 16656 | -4/Factory | Crushed by falling debris 16725 | -4/Factory | Entered Upper Caves 17005 | -4/Upper Caves | Build established: Pyromaniac-Tank 17134 | -4/Upper Caves | Attracted the attention of an 0b10 checkpoint 17312 | -4/Upper Caves | Spotted B-86 Titan 17420 | -4/Upper Caves | Lost 7 parts (1n2u4w) 17467 | -4/Upper Caves | Discovered new exit (range 7) 17475 | -4/Upper Caves | Entered another Upper Caves area 17484 | -4/Upper Caves | Discovered new exit (range 6) 17490 | -4/Upper Caves | Entered Research 17490 | -3/Research | Evolved 2 slots: Utility x1, Weapon x1 17852 | -3/Research | Build established: Tank 18289 | -3/Research | Fabricated K-01 Serf (x4) 18341 | -3/Research | Lost 4 allies 18432 | -3/Research | Found Gamma Bomb Array 18506 | -3/Research | System corruption reached 10% 18699 | -3/Research | Lost 9 parts (1p4u4w) 18869 | -3/Research | Discovered new exit (range 7) 18874 | -3/Research | Identified exit to Quarantine 18876 | -3/Research | Entered Quarantine 18924 | -3/Quarantine | Found Alien Energy Cannon 18924 | -3/Quarantine | Identified Core Cannon 18945 | -3/Quarantine | Build established: Scavenger-Tank 18975 | -3/Quarantine | Found Alien Artifact 18975 | -3/Quarantine | Identified Phase Redirector 19091 | -3/Quarantine | Garrison activated, responded to threat 19093 | -3/Quarantine | Scanned by Researcher 19221 | -3/Quarantine | Lost 4 parts (1p2u1w) 19298 | -3/Quarantine | Crushed by falling debris 19349 | -3/Quarantine | Core integrity fell below 50% 19382 | -3/Quarantine | Core integrity fell below 20% 19430 | -3/Quarantine | Lost 18 parts (3p6n6u3w) 19458 | -3/Quarantine | Destroyed by G-67 Veteran with Plasma Rifle Last Messages --------------- 19386_ U-05 Engineer builds a Wall. 19386_ K-01 Serf collects debris. 19387_ Arm. Medium Treads destroyed. 19387_ K-01 Serf destroyed. 19388_ U-05 Engineer builds a Wall. 19390_ K-01 Serf collects debris. 19392_ U-05 Engineer builds a Door. 19394_ ALERT: Potential suspicious activity detected, Programmers report to Quarantine Zone 8R. 19399_ Adv. Cooling System destroyed. 19399_ Centrium Wheel destroyed. 19405_ System corrupted: Component data lost. 19436_ System corrupted: Matter fused (-5). 19449_ Energy Well destroyed. 19451_ System corrupted: Matter fused (-10). 19452_ Gamma Bomb Array destroyed. 19455_ Coil Gun destroyed. 19456_ Centrium Wheel destroyed. [Achievement: 20k Club] Map ----- +----------------------------------------------------+ | """"""???????????????????????????????????????? | | #????????????????????????????????????????????? | | "" #????????????????????????????????????????????? | | "" #????????????????????????????????????????????? | | "" ??????????????????????????????????????????????? | | "" ??????????????????????????????????????????????? | | "" #????????????????????????????????????????????? | | +????????????????????????????????????????????? | | "" #????????????????????????????????????????????? | | "" #????????????????????????????????????????????? | | "" #????????????????????????????????????????????? | | "" #????????????????????????????????????????????? | | "" #????????????????????????????????????????????? | | ##???????????????????????????????????????????? | | "" T#???????????????????????????????????????????? | | "" #????????????????????????????????????????????? | | "" #????????????????????????????????????????????? | | "" ###############??????????????????????????????? | | "" #??????????????????????????????? | | #??????????????????????????????? | | #############??????????????????? | | # #??????????????????? | | #######+###### # #??????????????????? | | ????? ???# # #??????????????????? | | ????#[ "" ?# # #??????????????????? | | ????# "" ## # g @ #??????????????????? | | ????# S" ## #g g #??????????????????? | | ????# """ ## + g #??????????????????? | | ????# """ ## # g #??????????????????? | | ????# """?####### #??????????????????? | | ????# ???????# """ """ #??????????????????? | | ????# ?????????# """""""""g#??????????????????? | | ????# ?????????# g #??????????????????? | | ????# ?????????# #??????????????????? | | ????#####?????????#############??????????????????? | | ?????????????????????????????????????????????????? | | ?????????????????????????????????????????????????? | | ?????????????????????????????????????????????????? | | ?????????????????????????????????????????????????? | | ?????????????????????????????????????????????????? | | ?????????????????????????????????????????????????? | | ?????????????????????????????????????????????????? | | ?????????????????????????????????????????????????? | | ?????????????????????????????????????????????????? | | ?????????????????????????????????????????????????? | | ?????????????????????????????????????????????????? | | ?????????????????????????????????????????????????? | | ?????????????????????????????????????????????????? | | ?????????????????????????????????????????????????? | | ?????????????????????????????????????????????????? | +----------------------------------------------------+ Best States ------------- Heat Dissipation 139 Coolant Potential 100 Energy Generation 45 Energy Capacity 885 Matter Stores 300 Matter Capacity 450 Sight Range 16 Robot Scan Range 16 Terrain Scan Range 18 Terrain Scan Density 10 Power Amplification 30 Armor Coverage 1200 Weapon Cycling 20 Phase Shifting 5 Evasion (%) 55 Targeting Accuracy 6 Recoil Reduction 5 Energy Filtering 30 Particle Charging 25 Authchip Count 1 Item Schematics ----------------- Core Analyzer | -9/Storage | Hacked Xenon Bombardment Thruster | -9/Recycling | Hacked Arm. Treads | -9/Recycling | Hacked Signal Interpreter | -9/Recycling | Hacked Imp. Medium Treads | -7/Factory | Hacked Imp. Light Armor Plating | -5/Factory | Scanalyzed Adv. Medium Treads | -4/Factory | Scanalyzed Exp. Core Shielding | -3/Quarantine | Archive Cld. Antigrav System | -3/Quarantine | Archive Robot Schematics ------------------ C-55 Analyst | -3/Quarantine | Archive Fabricated ------------ Arm. Treads | x2 | -7/Factory Arm. Treads | x2 | -6/Factory Arm. Treads | x2 | -6/Factory Imp. Light Armor Plating | x2 | -5/Factory K-01 Serf | x4 | -3/Research | Preloaded Repaired ---------- Imp. Assault Rifle | 4% | -9/Materials Imp. Medium Laser | 14% | -7/Factory Arm. Treads | 19% | -7/Factory Imp. Treads | 11% | -7/Factory Imp. Cooling System | 20% | -7/Factory Arm. Treads | 1% | -6/Factory Imp. Treads | 25% | -6/Factory Studied --------- Arm. Treads | -6/Factory | Hacked Plasma Rifle | -5/Factory | Hacked Neutrino Core | -5/Factory | Hacked Phase Gun | -4/Factory | Hacked Dispersion Rifle | -3/Research | Hacked Alien Tech Used ----------------- Core Cannon Phase Redirector Achievements -------------- 20k Club Botjacking Explorer Hard Hitter Immobile And Lovin' It Into The Breach Knowing Is Half The Battle My Command Is Your Wish Prolific Hacker Pyromaniac Rockin' Loadout \\IAMDERELICT Challenges ------------ None Game ------ Seed SiegeDeliveryJoltstriker Manual? 0 Play Time 04:48:25 Cumulative 28.0 hours Start 2026.07.05 @ 03:30:29 End 2026.07.06 @ 02:12:50 Sessions 5 Manual Loads 0 Difficulty Rogue Special Mode None Game No. 21 Rogue 21 Adventurer 0 Explorer 0 Win Type - Total 0 Types 0/0/0/0/0/0/0/0/0/0 Lore% 20 Gallery% 22 Achievement% 23 Wizard Run 0 Options --------- Layout 1 ASCII 0 Keyboard 0 Movement Mouse Keybinds 0 Fullscreen 1 Font 24/Smallcaps Map View 50x35 Zoom Use 0% Tactical HUD 1 Map Filters NONE Filters NONE Steam 1 RUN: 4afcd208-c568-4d92-ba50-507d19aaa71d